{"text_format":"1","workbook":"xlsx","n_sheets":1,"sheets":["Tabelle1"],"not_rendered":{"charts":0,"images":9,"macros":1,"external_links":0,"defined_names":0,"comments":0,"pivot_tables":0},"unopened":[],"bounds":{"document_bytes":16777216,"sheet_cells":100000,"rows_first":2000,"rows_last":500,"rows_between":2000,"halvings":0,"cell_chars":16384,"cell_head_chars":4096},"cells_cut":0,"cells_raw":0,"read":"whole","date_system":"1900"}

{"sheet":"Tabelle1","index":0,"n_rows":15,"n_cols":20,"rows_kept":15,"cut":false,"hidden":false,"merged":[[14,9,14,12],[12,1,14,1],[6,1,8,1],[9,1,10,1],[3,10,3,11],[8,3,8,5],[2,3,2,5],[2,6,2,8],[2,9,2,12],[2,1,2,2],[4,1,5,1]]}
[]
[]
[null,"Tarif ",null,"AG-Finanzierung  ",null,null,"Familie ",null,null,"AN-Finanzierung "]
[null,null,null,"MA-Zahl","Bedingung","Anmeldung","Auswahl","Bedingung","Anmeldung","MA-Zahl","Bedingung",null,"Anmeldung"]
[null,"Stationär",null,null,{"$f":"IF(AND(S5=TRUE,D5>=20),\"ohne Gesundheitsprüfung, mit Berufsprüfung, laufende und angeratene Behandlungen mitversichert\",IF(AND(S5=TRUE,D5<20,D5>=10),\"ohne Gesundheitsprüfung, aber bestimmte schwere Vorerkrankungen ausgeschlossen, Wartezeiten, Berufsprüfung\",\"nicht ausgewählt\"))","v":"nicht ausgewählt"},{"$f":"IF(AND(S5=TRUE,D5>=10),\"Checkliste, dann Anmeldung der MA über Meldeliste von GVU\",\"\")","v":""},null,{"$f":"IF(AND(S5=TRUE,D5<20,D5>=10,T5=TRUE),\"mit Gesundheits- und Berufsprüfung\",IF(AND(S5=TRUE,D5>=20,T5=TRUE),\"ohne Gesundheitsprüfung innerhalb von 6 Monaten im gleichen Tarif, bestimmte schwere Vorerkrankungen ausgeschlossen, Berufsprüfung\",\"\"))","v":""},{"$f":"IF(AND(S5=TRUE,T5=TRUE,D5<20,D5>1),\"MediGroup Antrag\",IF(AND(S5=TRUE,T5=TRUE,D5>=20),\"speziellen Antrag mit sog. Merkblattregelung bei GVU anfordern\",\"\"))","v":""},null,{"$f":"IF(AND(J5>=5,J5<50,S5=TRUE),\"mit Gesundheits- und Berufsprüfung\",IF(AND(J5>=50,S5=TRUE),\"ohne Gesundheitsprüfung, sodass laufende und angeratene Behandlungen mitversichert sind, sofern nicht mehr als 20 AU-Tage in den letzten 12 Monaten, Berufsprüfung\",\"nicht ausgewählt\"))","v":"nicht ausgewählt"},{"$f":"IF(AND(J5>=5,J5<20,S5=TRUE),\"Risikozuschlag, Leistungsausschluss, Ablehnung möglich\",IF(AND(J5>=20,J5<50,S5=TRUE),\"Risikozuschlag, Leistungsausschluss möglich, keine Ablehnung\",IF(AND(S5=TRUE,J5>=50),\"keine Ablehnung\",\"\")))","v":""},{"$f":"IF(AND(S5=TRUE,J5>=5,J5<50),\"MediGroup Antrag\",IF(AND(S5=TRUE,J5>=50),\"Antrag über GVU\",\"\"))","v":""},null,null,null,null,null,false,false]
[null,null,null,null,{"$f":"IF(AND(S6=TRUE,D6>=20),\"ohne Gesundheitsprüfung, mit Berufsprüfung\",IF(AND(S6=TRUE,D6<20,D6>=5),\"ohne Gesundheitsprüfung, laufende und angeratene Behandlungen nicht versichert, Berufsprüfung\",\"nicht ausgewählt\"))","v":"nicht ausgewählt"},{"$f":"IF(AND(S6=TRUE,D6>=5),\"Checkliste, dann Anmeldung der MA über Meldeliste von GVU\",\"\")","v":""},null,{"$f":"IF(AND(S6=TRUE,D6<20,D6>=5,T6=TRUE),\"ohne Gesundheitsprüfung, mit Berufsprüfung\",IF(AND(S6=TRUE,D6>=20,T6=TRUE),\"ohne Gesundheitsprüfung, mit Berufsprüfung\",\"\"))","v":""},{"$f":"IF(AND(S6=TRUE,T6=TRUE,D6<20,D6>1),\"MediGroupAntrag\",IF(AND(S6=TRUE,T6=TRUE,D6>=20),\"speziellen Antrag mit sog. Merkblattregelung bei GVU anfordern\",\"\"))","v":""},null,{"$f":"IF(AND(J6>=5,J6<50,S6=TRUE),\"ohne Gesundheitsprüfung, mit Berufsprüfung\",IF(AND(J6>=50,S6=TRUE),\"ohne Gesundheitsprüfung, mit Berufsprüfung\",\"nicht ausgewählt\"))","v":"nicht ausgewählt"},"",{"$f":"IF(AND(S6=TRUE,J6>=5,J6<50),\"MediGroup Antrag\",IF(AND(S6=TRUE,J6>=50),\"Antrag über GVU\",\"\"))","v":""},null,null,null,null,null,false,false]
[null,"Zahn",null,null,{"$f":"IF(AND(S7=TRUE,D7>=20),\"ohne Gesundheits- und Berufsprüfung (ausg. Zahnarztpraxen), laufende und angeratene Behandlungen mitversichert\",IF(AND(S7=TRUE,D7<20,D7>=5),\"ohne Gesundheitsprüfung, laufende und angeratene Behandlungen nicht versichert, keine Berufsprüfung (ausg. Zahnarztpraxen)\",\"nicht ausgewählt\"))","v":"nicht ausgewählt"},{"$f":"IF(AND(S7=TRUE,D7>=5),\"Checkliste, dann Anmeldung der MA über Meldeliste von GVU\",\"\")","v":""},null,{"$f":"IF(AND(S7=TRUE,D7<20,D7>=5,T7=TRUE),\"ohne Gesundheitsprüfung, laufende und angeratene Behandlungen sind mitversichert, keine Berufsprüfung (ausg. Zahnarztpraxen)\",IF(AND(S7=TRUE,D7>=20,T7=TRUE),\"ohne Gesundheitsprüfung, laufende und angeratene Behandlungen  mitversichert, keine Berufsprüfung (ausg. Zahnarztpraxen)\",\"\"))","v":""},{"$f":"IF(AND(S7=TRUE,T7=TRUE,D7<20,D7>1),\"MediGroupAntrag\",IF(AND(S7=TRUE,T7=TRUE,D7>=20),\"speziellen Antrag mit Merkblattregelung bei GVU anfordern\",\"\"))","v":""},null,{"$f":"IF(AND(J7>=5,J7<50,S7=TRUE),\"ohne Gesundheitsprüfung, aber fehlende Zähne sowie laufende und angeratene Behandlungen nicht versichert, keine Berufsprüfung (ausg. Zahnarztpraxen)\",IF(AND(J7>=50,S7=TRUE),\"ohne Gesundheitsprüfung, sodass laufende und angeratene Behandlungen mitvrersichert sind, sofern nicht mehr als 20 AU-Tage in den letzten 12 Monaten, keine Berufsprüfung (ausg. Zahnarztpraxen)\",\"nicht ausgewählt\"))","v":"nicht ausgewählt"},"",{"$f":"IF(AND(S7=TRUE,J7>=5,J7<50),\"MediGroup Antrag\",IF(AND(S7=TRUE,J7>=50),\"Antrag über GVU\",\"\"))","v":""},null,null,null,null,null,false,false]
[null,null,null,null,{"$f":"IF(AND(S8=TRUE,D8>=20),\"ohne Gesundheits- und Berufsprüfung (ausg. Zahnarztpraxen), laufende und angeratene Behandlungen mitversichert\",IF(AND(S8=TRUE,D8<20,D8>=5),\"ohne Gesundheitsprüfung, fehlende Zähne sowie laufende und angeratene Behandlungen nicht versichert, keine Berufsprüfung (ausg. Zahnarztpraxen)\",\"nicht ausgewählt\"))","v":"nicht ausgewählt"},{"$f":"IF(AND(S8=TRUE,D8>=5),\"Checkliste, dann Anmeldung der MA über Meldeliste von GVU\",\"\")","v":""},null,{"$f":"IF(AND(S8=TRUE,D8<20,D8>=5,T8=TRUE),\"ohne Gesundheitsprüfung, fehlende Zähne sowie laufende und angeratene Behandlungen nicht versichert, keine Berufsprüfung (ausg. Zahnarztpraxen)\",IF(AND(S8=TRUE,D8>=20,T8=TRUE),\"ohne Gesundheitsprüfung innerhalb von 6 Monaten im gleichen Tarif, fehlende Zänne und laufende/angeratene Behandlungen mitversichert, keine Berufsprüfung (ausg. Zahnarztpraxen)\",\"\"))","v":""},{"$f":"IF(AND(S8=TRUE,T8=TRUE,D8<20,D8>1),\"MediGroupAntrag\",IF(AND(S8=TRUE,T8=TRUE,D8>=20),\"speziellen Antrag mit Merkblattregelung bei GVU anfordern\",\"\"))","v":""},null,{"$f":"IF(AND(J8>=5,J8<50,S8=TRUE),\"ohne Gesundheits- und Berufsprüfung (ausg. Zahnarztpraxen)\",IF(AND(J8>=50,S8=TRUE),\"ohne Gesundheitsprüfung, sodass fehlende Zähne sowie laufende und angeratene Behandlungen mitversichert sind, sofern nicht mehr als 20 AU-Tage in den letzten 12 Monaten, keine Berufsprüfung (ausg. Zahnarztpraxen)\",\"nicht ausgewählt\"))","v":"nicht ausgewählt"},"","",null,null,null,null,null,false,false]
[null,null,null,"Wird in der AG-Finanzierung nicht angeboten",null,null,null,{"$f":"IF(AND(S9=TRUE,T9=TRUE),\"mit Gesundheitsprüfung\",\"\")","v":""},{"$f":"IF(AND(S9=TRUE,T9=TRUE),\"MediGroup Antrag\",\"\")","v":""},null,{"$f":"IF(AND(J9>=5,J9<50,S9=TRUE),\"mit Gesundheitsprüfung\",IF(AND(J9>=50,S9=TRUE),\"ohne Gesundheitsprüfung, sodass fehlende Zänne sowie laufende und angeratene Behandlungen mitversichert sind, sofern nicht mehr als 20 AU-Tage in den letzten 12 Monaten, keine Berufsprüfung (ausg. Zahnärzte)\",\"nicht ausgewählt\"))","v":"nicht ausgewählt"},"",{"$f":"IF(AND(S9=TRUE,J9>=5,J9<50),\"MediGroup Antrag\",IF(AND(S9=TRUE,J9>=50),\"Antrag über GVU\",\"\"))","v":""},null,null,null,null,null,false,false]
[null,"Ambulant",null,null,{"$f":"IF(AND(S10=TRUE,D10>=20),\"ohne Gesundheitsprüfung, mit Berufsprüfung, laufende und angeratene Behandlungen mitversichert\",IF(AND(S10=TRUE,D10<20,D10>=10),\"ohne Gesundheitsprüfung, aber bestimmte schwere Vorerkrankungen nicht versichert, Wartezeiten, Berufsprüfung\",\"nicht ausgewählt\"))","v":"nicht ausgewählt"},{"$f":"IF(AND(S10=TRUE,D10>=10),\"Checkliste, dann Anmeldung der MA über Meldeliste von GVU\",\"\")","v":""},null,{"$f":"IF(AND(S10=TRUE,D10<20,D10>=10,T10=TRUE),\"mit Gesundheits- und Berufsprüfung\",IF(AND(S10=TRUE,D10>=20,T10=TRUE),\"ohne Gesundheitsprüfung innerhalb von 6 Monaten im gleichen Tarif, bestimmte schwere Vorerkrankungen ausgeschlossen, Berufsprüfung\",\"\"))","v":""},{"$f":"IF(AND(S10=TRUE,T10=TRUE,D10<20,D10>1),\"MediGroupAntrag\",IF(AND(S10=TRUE,T10=TRUE,D10>=20),\"speziellen Antrag mit Merkblattregelung bei GVU anfordern\",\"\"))","v":""},null,{"$f":"IF(AND(J10>=5,J10<50,S10=TRUE),\"mit Gesundheitsprüfung\",IF(AND(J10>=50,S10=TRUE),\"ohne Gesundheitsprüfung, sodass laufende und angeratene Behandlungen mitversichert sind, sofern nicht mehr als 20 AU-Tage in den letzten 12 Monaten, Berufsprüfung\",\"nicht ausgewählt\"))","v":"nicht ausgewählt"},"","",null,null,null,null,null,false,false]
[null,null,null,null,{"$f":"IF(AND(D11>=5,S11=TRUE),\"ohne Gesundheits- und Berufsprüfung\",\"nicht ausgewählt\")","v":"nicht ausgewählt"},{"$f":"IF(AND(S11=TRUE,D11>=5),\"Checkliste, dann Anmeldung der MA über Meldeliste von GVU\",\"\")","v":""},null,{"$f":"IF(AND(S11=TRUE,D11>=5,T11=TRUE),\"ohne Gesundheits- und Berufsprüfung\",\"\")","v":""},{"$f":"IF(AND(S11=TRUE,T11=TRUE,D11>1),\"MediGroupAntrag\",\"\")","v":""},null,{"$f":"IF(J11>=1,\"ohne Gesundheits- und Berufsprüfung\",\"nicht ausgewählt\")","v":"nicht ausgewählt"},null,"",null,null,null,null,null,false,false]
[null,"Budget",null,null,{"$f":"IF(AND(D12>=5,S12=TRUE),\"ohne Gesundheitsprüfung, laufende und angeratene Behandlungen mitversichert, keine Berufsprüfung (ausg. Profisport, Zahnarztpraxen)\",\"nicht ausgewählt\")","v":"nicht ausgewählt"},{"$f":"IF(AND(S12=TRUE,D12>=5),\"Checkliste, dann Anmeldung der MA über Meldeliste von GVU\",\"\")","v":""},null,{"$f":"IF(AND(S12=TRUE,D12<20,D12>=5,T12=TRUE),\"mit Gesundheitsprüfung, laufende und angeratene Behandlungen nicht versichert, Tarifstufe frei wählbar, keine Berufsprüfung\",IF(AND(S12=TRUE,D12>=20,T12=TRUE),\"ohne Gesundheitsprüfung innerhalb von 6 Monaten in der gleichen/niedrigeren Budgetstufe, laufende und angeratene Behandlungen mitversichert, keine Berufsprüfung\",\"\"))","v":""},{"$f":"IF(AND(S12=TRUE,T12=TRUE,D12<20,D12>1),\"MediGroupAntrag\",IF(AND(S12=TRUE,T12=TRUE,D12>=20),\"speziellen Antrag mit Merkblattregelung bei GVU anfordern\",\"\"))","v":""},null,{"$f":"IF(AND(J12>=5,J12<50,S12=TRUE),\"mit Gesundheitsprüfung\",IF(AND(J12>=50,S12=TRUE),\"ohne Gesundheitsprüfung, sodass laufende und angeratene Behandlungne mitversichert sind, sofern nicht mehr als 20 AU-Tage in den letzten 12 Monaten, keine Berufsprüfung (ausg. Profitsport, Zahnarztpraxen)\",\"nicht ausgewählt\"))","v":"nicht ausgewählt"},{"$f":"IF(AND(J12>=5,J12<20,S12=TRUE),\"Risikozuschlag, Leistungsausschluss, Ablehnung möglich\",IF(AND(J12>=20,J12<50,S12=TRUE),\"Risikozuschlag, Leistungsausschluss möglich, keine Ablehnung\",IF(AND(S12=TRUE,J12>=50),\"keine Ablehnung\",\"\")))","v":""},"",null,null,null,null,null,false,false]
[null,"TG, PG und Ausland",null,null,{"$f":"IF(AND(D13>=10,D13<20,S13=TRUE),\"mit Gesundheits- und Berufsprüfung, Erschwernis analog Einzelgeschäft, Ablehnung möglich\",IF(AND(D13>=20,S13=TRUE),\"KT bis max. 30€ ohne Gesundheitsprüfung, darüber hinaus mit Gesundheitsprüfung\",\"nicht ausgewählt\"))","v":"nicht ausgewählt"},{"$f":"IF(AND(S13=TRUE,D13>=10,D13<20),\"Gruppenantrag\",IF(AND(S13=TRUE,D13>=20),\"Checkliste, dann Anmeldung der MA über Meldeliste von GVU\",\"\"))","v":""},null,{"$f":"IF(AND(D13>=20,S13=TRUE,T13=TRUE),\"bis max. 30€ ohne Gesundheitsprüfung, bestimmte schwere Vorerkrankungen ausgeschlossen, darüber hinaus mit Gesundheitsprüfung\",IF(AND(S13=TRUE,T13=TRUE,D13>=10,D13<20),\"mit Gesundheitsprüfung, Risikozuschlag, Leistungsauschluss\",\"\"))","v":""},{"$f":"IF(AND(D13>=20,S13=TRUE,T13=TRUE),\"Antrag über GVU, bis 30€ mit Merkblattregelung\",IF(AND(S13=TRUE,T13=TRUE,D13>=5,D13<20),\"speziellen Antrag mit Merkblattregelung bei GVU anfordern\",\"\"))","v":""},null,{"$f":"IF(AND(J13>=5,J13<50,S13=TRUE),\"mit Gesundheitsprüfung\",IF(AND(J13>=50,S13=TRUE),\"ohne Gesundheitsprüfung, sofern nicht mehr als 20 AU-Tage in den letzten 12 Monaten\",\"nicht ausgewählt\"))","v":"nicht ausgewählt"},{"$f":"IF(AND(J13>=5,J13<20,S13=TRUE),\"Risikozuschlag, Leistungsausschluss, Ablehnung möglich\",IF(AND(J13>=20,J13<50,S13=TRUE),\"Risikozuschlag, Leistungsausschluss möglich, keine Ablehnung\",IF(AND(S13=TRUE,J13>=50),\"keine Ablehnung\",\"\")))","v":""},{"$f":"IF(AND(J13>=5,S13=TRUE),\"Antrag über GVU\",\"\")","v":""},null,null,null,null,null,false,false]
[null,null,null,null,{"$f":"IF(AND(D14>=20,S14=TRUE),\"ohne Gesundheitsprüfung, mit Berufsprüfung\",\"nicht ausgewählt\")","v":"nicht ausgewählt"},{"$f":"IF(AND(S14=TRUE,D14>=20),\"Checkliste, dann Anmeldung der MA über Meldeliste von GVU\",\"\")","v":""},null,{"$f":"IF(AND(S14=TRUE,T14=TRUE,D14>=20),\"mit Gesundheits- und Berufsprüfung, Erschwerung analog Einzelgeschäft möglich; Kinder und Jugendliche nur im Rahmen der Kindernachversicherungs versicherbar\",\"\")","v":""},{"$f":"IF(AND(S14=TRUE,T14=TRUE,D14>=5),\"Ergänzungsantrag PG\",\"\")","v":""},null,{"$f":"IF(AND(J14>=5,S14=TRUE),\"mit Gesundheitsprüfung\",\"nicht ausgewählt\")","v":"nicht ausgewählt"},{"$f":"IF(AND(J14>=5,J14,S14=TRUE),\"Risikozuschlag, Leistungsausschluss, Ablehnung möglich\",\"\")","v":""},{"$f":"IF(AND(J14>=5,S14=TRUE),\"Ergänzungsantrag PG\",\"\")","v":""},null,null,null,null,null,true,true]
[null,null,null,null,{"$f":"IF(AND(D15>=20,S14=TRUE),\"ohne Gesundheitsprüfung\",\"nicht ausgewählt\")","v":"nicht ausgewählt"},{"$f":"IF(AND(S15=TRUE,D15>=20),\"Checkliste, dann Anmeldung der MA über Meldeliste von GVU\",\"\")","v":""},null,{"$f":"IF(AND(S15=TRUE,T15=TRUE,D15>=20),\"ohne Gesundheitsprüfung\",\"\")","v":""},{"$f":"IF(AND(S15=TRUE,T15=TRUE,D15>=5),\"speziellen Antrag mit Merkblattregelung bei GVU anfordern\",\"\")","v":""},"Wird in AN-Finanzierung nicht angeboten, Absicherung in Tarife des Einzelgeschäfts ",null,null,null,null,null,null,null,null,true,true]